[Event "*** Titled Tuesday Blitz"]
[Site "Chess.com"]
[Date "2020.05.05"]
[Round "2"]
[White "chegueps"]
[Black "praveenb2002"]
[Result "1-0"]
[WhiteElo "2523"]
[BlackElo "2723"]
[TimeControl "180+1"]
[EndTime "10:19:31 PDT"]
[Termination "chegueps won by checkmate"]

1. e4 {[%clk 0:02:49.1]} 1... e5 {[%clk 0:02:59.9]} 2. Nf3 {[%clk 0:02:49.1]}
2... Nc6 {[%clk 0:02:59.9]} 3. Bb5 {[%clk 0:02:49.5]} 3... a6 {[%clk 0:02:59.8]}
4. Ba4 {[%clk 0:02:49.6]} 4... Nf6 {[%clk 0:03:00.1]} 5. O-O {[%clk 0:02:49.1]}
5... b5 {[%clk 0:03:00.2]} 6. Bb3 {[%clk 0:02:49]} 6... Bc5 {[%clk 0:02:59.8]}
7. c3 {[%clk 0:02:41.9]} 7... d6 {[%clk 0:02:59.2]} 8. d4 {[%clk 0:02:40.6]}
8... Bb6 {[%clk 0:02:59.6]} 9. a4 {[%clk 0:02:34.3]} 9... Rb8 {[%clk 0:02:59.8]}
10. a5 {[%clk 0:02:29]} 10... Ba7 {[%clk 0:02:58.9]} 11. Be3 {[%clk 0:01:55.2]}
11... O-O {[%clk 0:02:55.5]} 12. Nbd2 {[%clk 0:01:54.2]} 12... Bg4 {[%clk
0:02:53.8]} 13. Bc2 {[%clk 0:01:33.9]} 13... Re8 {[%clk 0:02:52.1]} 14. d5
{[%clk 0:01:14.1]} 14... Bxe3 {[%clk 0:02:47.5]} 15. fxe3 {[%clk 0:01:15]} 15...
Ne7 {[%clk 0:02:48]} 16. Rc1 {[%clk 0:00:51.9]} 16... b4 {[%clk 0:02:38.8]} 17.
Ba4 {[%clk 0:00:38.5]} 17... Bd7 {[%clk 0:02:36.1]} 18. c4 {[%clk 0:00:37.3]}
18... c5 {[%clk 0:02:31]} 19. Ra1 {[%clk 0:00:29.2]} 19... Ng4 {[%clk
0:02:21.6]} 20. Bxd7 {[%clk 0:00:21.7]} 20... Qxd7 {[%clk 0:02:22.5]} 21. Qe2
{[%clk 0:00:21]} 21... f5 {[%clk 0:02:22.5]} 22. h3 {[%clk 0:00:20.1]} 22... Nf6
{[%clk 0:02:20.6]} 23. Ng5 {[%clk 0:00:20.5]} 23... fxe4 {[%clk 0:02:12.4]} 24.
Ndxe4 {[%clk 0:00:21.4]} 24... Nxe4 {[%clk 0:02:12.2]} 25. Nxe4 {[%clk
0:00:22.3]} 25... h6 {[%clk 0:02:11]} 26. Qh5 {[%clk 0:00:22.3]} 26... Rf8
{[%clk 0:02:09.2]} 27. g4 {[%clk 0:00:17.3]} 27... Rxf1+ {[%clk 0:01:42]} 28.
Rxf1 {[%clk 0:00:18.2]} 28... Rf8 {[%clk 0:01:42.1]} 29. Rxf8+ {[%clk
0:00:12.9]} 29... Kxf8 {[%clk 0:01:43]} 30. Qh4 {[%clk 0:00:13.5]} 30... Nc8
{[%clk 0:01:38]} 31. Qf2+ {[%clk 0:00:14.4]} 31... Kg8 {[%clk 0:01:33.9]} 32. b3
{[%clk 0:00:14.9]} 32... Ne7 {[%clk 0:01:17.2]} 33. Qf6 {[%clk 0:00:14.7]} 33...
Nc8 {[%clk 0:01:09.9]} 34. Qxh6 {[%clk 0:00:14.6]} 34... Qf7 {[%clk 0:00:33.2]}
35. Qg5 {[%clk 0:00:07.4]} 35... Qf8 {[%clk 0:00:22.8]} 36. Kg2 {[%clk
0:00:06.8]} 36... Kh7 {[%clk 0:00:15.8]} 37. Qh5+ {[%clk 0:00:06.7]} 37... Kg8
{[%clk 0:00:15.7]} 38. Ng5 {[%clk 0:00:07.6]} 38... Qf6 {[%clk 0:00:12.4]} 39.
Qh7+ {[%clk 0:00:07.8]} 39... Kf8 {[%clk 0:00:12.8]} 40. Qh8+ {[%clk 0:00:08.4]}
40... Ke7 {[%clk 0:00:13.3]} 41. Ne6 {[%clk 0:00:09.3]} 41... Kd7 {[%clk
0:00:11.9]} 42. g5 {[%clk 0:00:05.1]} 42... Qe7 {[%clk 0:00:10.9]} 43. Qxg7
{[%clk 0:00:05.2]} 43... Qxg7 {[%clk 0:00:10.7]} 44. Nxg7 {[%clk 0:00:06.1]}
44... Ne7 {[%clk 0:00:09.9]} 45. h4 {[%clk 0:00:06.1]} 45... Nxd5 {[%clk
0:00:10.4]} 46. cxd5 {[%clk 0:00:05.9]} 46... c4 {[%clk 0:00:10.8]} 47. h5
{[%clk 0:00:03.1]} 47... cxb3 {[%clk 0:00:06.9]} 48. h6 {[%clk 0:00:04]} 48...
b2 {[%clk 0:00:07.5]} 49. h7 {[%clk 0:00:04.9]} 49... b1=Q {[%clk 0:00:07.9]}
50. h8=Q {[%clk 0:00:05.8]} 50... Qe4+ {[%clk 0:00:07.5]} 51. Kh2 {[%clk
0:00:06.4]} 51... Qc2+ {[%clk 0:00:02.4]} 52. Kg3 {[%clk 0:00:05.3]} 52... Qe4
{[%clk 0:00:02.5]} 53. Qe8+ {[%clk 0:00:05.8]} 53... Kc7 {[%clk 0:00:02.8]} 54.
Ne6+ {[%clk 0:00:06]} 54... Kb7 {[%clk 0:00:03.3]} 55. Qd7+ {[%clk 0:00:06.3]}
55... Ka8 {[%clk 0:00:03.6]} 56. Qc8+ {[%clk 0:00:06.3]} 56... Ka7 {[%clk
0:00:03.9]} 57. Qc7+ {[%clk 0:00:06.7]} 57... Ka8 {[%clk 0:00:04.4]} 58. Qc6+
{[%clk 0:00:07.1]} 58... Ka7 {[%clk 0:00:04.7]} 59. Qb6+ {[%clk 0:00:07.7]}
59... Ka8 {[%clk 0:00:05.2]} 60. Nc7# {[%clk 0:00:08.6]} 1-0

[Event "*** Titled Tuesday Blitz"]
[Site "Chess.com"]
[Date "2020.05.05"]
[Round "2"]
[White "Islamovqaasim"]
[Black "smshk35"]
[Result "0-1"]
[WhiteElo "2039"]
[BlackElo "2369"]
[TimeControl "180+1"]
[EndTime "10:19:31 PDT"]
[Termination "smshk35 won by checkmate"]

1. d4 {[%clk 0:02:59.1]} 1... Nf6 {[%clk 0:02:59.6]} 2. Nf3 {[%clk 0:03:00]}
2... g6 {[%clk 0:02:59]} 3. c4 {[%clk 0:03:00.2]} 3... Bg7 {[%clk 0:02:58.1]} 4.
Nc3 {[%clk 0:03:01.1]} 4... O-O {[%clk 0:02:58.3]} 5. Bg5 {[%clk 0:03:01.6]}
5... d5 {[%clk 0:02:57.6]} 6. e3 {[%clk 0:03:00.9]} 6... c5 {[%clk 0:02:51.9]}
7. dxc5 {[%clk 0:02:57.5]} 7... dxc4 {[%clk 0:02:49.2]} 8. Bxc4 {[%clk
0:02:56.5]} 8... Na6 {[%clk 0:02:48]} 9. O-O {[%clk 0:02:55.5]} 9... Nxc5 {[%clk
0:02:47.8]} 10. Qc2 {[%clk 0:02:49.3]} 10... Bf5 {[%clk 0:02:46.6]} 11. Qe2
{[%clk 0:02:31]} 11... h6 {[%clk 0:02:35.1]} 12. Bxf6 {[%clk 0:02:25.2]} 12...
Bxf6 {[%clk 0:02:33.7]} 13. Rfd1 {[%clk 0:02:24.1]} 13... Qb6 {[%clk 0:02:11.9]}
14. Nd4 {[%clk 0:02:10.2]} 14... Bxd4 {[%clk 0:01:57.7]} 15. exd4 {[%clk
0:02:08.1]} 15... Ne6 {[%clk 0:01:55]} 16. Nd5 {[%clk 0:02:00.6]} 16... Nxd4
{[%clk 0:01:28.2]} 17. Nxe7+ {[%clk 0:01:58.2]} 17... Kh7 {[%clk 0:01:23.9]} 18.
Qe5 {[%clk 0:01:41.3]} 18... Nc6 {[%clk 0:01:14.3]} 19. Nxc6 {[%clk 0:01:29.1]}
19... Qxc6 {[%clk 0:01:13.5]} 20. Rac1 {[%clk 0:01:24.7]} 20... Rae8 {[%clk
0:01:12.8]} 21. Qg3 {[%clk 0:01:12.4]} 21... Rc8 {[%clk 0:01:04.6]} 22. Qf4
{[%clk 0:01:02.1]} 22... Qa4 {[%clk 0:00:44]} 23. b3 {[%clk 0:00:26.7]} 23...
Qxa2 {[%clk 0:00:40.9]} 24. h3 {[%clk 0:00:25.1]} 24... Qa3 {[%clk 0:00:33.4]}
25. Ra1 {[%clk 0:00:23.1]} 25... Qc5 {[%clk 0:00:28.3]} 26. g4 {[%clk
0:00:21.4]} 26... Be6 {[%clk 0:00:23.5]} 27. Rac1 {[%clk 0:00:16.3]} 27... Bxc4
{[%clk 0:00:21.6]} 28. Rxc4 {[%clk 0:00:17.2]} 28... Qe7 {[%clk 0:00:20.6]} 29.
Re4 {[%clk 0:00:15.8]} 29... Qg5 {[%clk 0:00:19]} 30. Qf3 {[%clk 0:00:13.9]}
30... Kg7 {[%clk 0:00:17.2]} 31. Rde1 {[%clk 0:00:14.2]} 31... Rc1 {[%clk
0:00:16.7]} 32. Kg2 {[%clk 0:00:14]} 32... Rxe1 {[%clk 0:00:16.6]} 33. Rxe1
{[%clk 0:00:14.9]} 33... b5 {[%clk 0:00:15.9]} 34. Re7 {[%clk 0:00:15.1]} 34...
Qxe7 {[%clk 0:00:13.9]} 35. Qc3+ {[%clk 0:00:13.4]} 35... Qf6 {[%clk 0:00:14]}
36. Qb4 {[%clk 0:00:13.2]} 36... a6 {[%clk 0:00:13.5]} 37. Qc5 {[%clk
0:00:12.6]} 37... Re8 {[%clk 0:00:13.8]} 38. h4 {[%clk 0:00:12.3]} 38... Re2
{[%clk 0:00:13.6]} 39. g5 {[%clk 0:00:11.7]} 39... Qxf2+ {[%clk 0:00:13.5]} 40.
Qxf2 {[%clk 0:00:11.3]} 40... Rxf2+ {[%clk 0:00:14.4]} 41. Kxf2 {[%clk
0:00:12.2]} 41... hxg5 {[%clk 0:00:15]} 42. hxg5 {[%clk 0:00:13.1]} 42... f5
{[%clk 0:00:15.2]} 43. Ke3 {[%clk 0:00:12.8]} 43... Kf7 {[%clk 0:00:14.9]} 44.
b4 {[%clk 0:00:13.3]} 44... Ke6 {[%clk 0:00:15.3]} 45. Kd4 {[%clk 0:00:13.8]}
45... Kd6 {[%clk 0:00:15.9]} 46. Kc3 {[%clk 0:00:13.3]} 46... Kd5 {[%clk
0:00:16.4]} 47. Kd3 {[%clk 0:00:13.6]} 47... Ke5 {[%clk 0:00:15.9]} 48. Ke3
{[%clk 0:00:14.5]} 48... f4+ {[%clk 0:00:16.4]} 49. Kf3 {[%clk 0:00:15.4]} 49...
Kf5 {[%clk 0:00:17]} 50. Kg2 {[%clk 0:00:15.7]} 50... Kxg5 {[%clk 0:00:17.5]}
51. Kf2 {[%clk 0:00:16.6]} 51... Kf5 {[%clk 0:00:18.1]} 52. Kf3 {[%clk
0:00:17.5]} 52... g5 {[%clk 0:00:18.6]} 53. Ke2 {[%clk 0:00:18.4]} 53... g4
{[%clk 0:00:19.2]} 54. Kf2 {[%clk 0:00:19.1]} 54... Ke4 {[%clk 0:00:19.8]} 55.
Kg2 {[%clk 0:00:20]} 55... g3 {[%clk 0:00:20.4]} 56. Kf1 {[%clk 0:00:20]} 56...
Kf3 {[%clk 0:00:19.8]} 57. Ke1 {[%clk 0:00:20.9]} 57... g2 {[%clk 0:00:19.7]}
58. Kd2 {[%clk 0:00:21.8]} 58... g1=Q {[%clk 0:00:20.2]} 59. Kd3 {[%clk
0:00:22.7]} 59... Qe3+ {[%clk 0:00:20.3]} 60. Kc2 {[%clk 0:00:22.7]} 60... Ke4
{[%clk 0:00:20.5]} 61. Kb2 {[%clk 0:00:22.8]} 61... f3 {[%clk 0:00:21]} 62. Kc2
{[%clk 0:00:23.7]} 62... f2 {[%clk 0:00:21.5]} 63. Kb2 {[%clk 0:00:24.6]} 63...
f1=Q {[%clk 0:00:21.9]} 64. Kc2 {[%clk 0:00:25.5]} 64... Qff2+ {[%clk
0:00:22.2]} 65. Kd1 {[%clk 0:00:25.2]} 65... Qee1# {[%clk 0:00:22.3]} 0-1

[Event "*** Titled Tuesday Blitz"]
[Site "Chess.com"]
[Date "2020.05.05"]
[Round "2"]
[White "Tashik"]
[Black "Love_craft"]
[Result "1-0"]
[WhiteElo "2462"]
[BlackElo "2164"]
[TimeControl "180+1"]
[EndTime "10:19:33 PDT"]
[Termination "Tashik won on time"]

1. c4 {[%clk 0:03:00.9]} 1... e5 {[%clk 0:02:59]} 2. Nc3 {[%clk 0:03:01]} 2...
Nc6 {[%clk 0:02:56.1]} 3. Nf3 {[%clk 0:03:01.4]} 3... d6 {[%clk 0:02:56.1]} 4.
d4 {[%clk 0:03:00.6]} 4... Be7 {[%clk 0:02:41]} 5. d5 {[%clk 0:02:59]} 5... Nb8
{[%clk 0:02:40.7]} 6. e4 {[%clk 0:02:59.5]} 6... Nf6 {[%clk 0:02:39.6]} 7. Be2
{[%clk 0:02:57]} 7... O-O {[%clk 0:02:39.6]} 8. O-O {[%clk 0:02:57.6]} 8... Ne8
{[%clk 0:02:39.5]} 9. Ne1 {[%clk 0:02:50.7]} 9... g6 {[%clk 0:02:38]} 10. Nd3
{[%clk 0:02:49.8]} 10... Nd7 {[%clk 0:02:37.2]} 11. Be3 {[%clk 0:02:47.4]} 11...
Ng7 {[%clk 0:02:36.9]} 12. b4 {[%clk 0:02:43.1]} 12... f5 {[%clk 0:02:36.9]} 13.
exf5 {[%clk 0:02:17.4]} 13... Nxf5 {[%clk 0:02:16.8]} 14. Bd2 {[%clk 0:02:12.4]}
14... Nf6 {[%clk 0:02:16.1]} 15. c5 {[%clk 0:02:02.2]} 15... Nd4 {[%clk
0:02:10.1]} 16. cxd6 {[%clk 0:01:39.4]} 16... Bxd6 {[%clk 0:02:11]} 17. Nb2
{[%clk 0:01:39.9]} 17... e4 {[%clk 0:01:55.3]} 18. Bg5 {[%clk 0:01:31.7]} 18...
Be5 {[%clk 0:01:19.4]} 19. Nxe4 {[%clk 0:01:26.6]} 19... Nxe2+ {[%clk
0:00:44.2]} 20. Qxe2 {[%clk 0:01:27.5]} 20... Qxd5 {[%clk 0:00:44.1]} 21. Nxf6+
{[%clk 0:01:22.1]} 21... Bxf6 {[%clk 0:00:44]} 22. Bxf6 {[%clk 0:01:23]} 22...
Rxf6 {[%clk 0:00:44.5]} 23. Rad1 {[%clk 0:01:16.5]} 23... Qe6 {[%clk 0:00:40.8]}
24. Rd8+ {[%clk 0:01:13.9]} 24... Rf8 {[%clk 0:00:40.8]} 25. Rxf8+ {[%clk
0:01:09]} 25... Kxf8 {[%clk 0:00:41.7]} 26. Qf3+ {[%clk 0:01:09.5]} 26... Qf7
{[%clk 0:00:21]} 27. Qc3 {[%clk 0:01:09]} 27... Qg7 {[%clk 0:00:11.6]} 28. Qc5+
{[%clk 0:01:00.2]} 28... Qe7 {[%clk 0:00:11.4]} 29. Qd4 {[%clk 0:00:54.9]} 29...
Kg8 {[%clk 0:00:07.1]} 30. Nd3 {[%clk 0:00:33.6]} 30... Bf5 {[%clk 0:00:05.7]}
31. Nc5 {[%clk 0:00:28.8]} 31... c6 {[%clk 0:00:04.2]} 32. Rd1 {[%clk
0:00:20.7]} 32... Re8 {[%clk 0:00:04.3]} 33. h3 {[%clk 0:00:21]} 33... b6 {[%clk
0:00:04]} 34. Nb3 {[%clk 0:00:18]} 34... Qf7 {[%clk 0:00:03.8]} 35. Qd6 {[%clk
0:00:13.8]} 35... Be4 {[%clk 0:00:03.5]} 36. Re1 {[%clk 0:00:10.4]} 36... Bd5
{[%clk 0:00:03.2]} 37. Rxe8+ {[%clk 0:00:08.6]} 37... Qxe8 {[%clk 0:00:04.1]}
38. Qf4 {[%clk 0:00:05.5]} 38... Qe1+ {[%clk 0:00:03.7]} 39. Kh2 {[%clk
0:00:06.1]} 39... Bxb3 {[%clk 0:00:04]} 40. axb3 {[%clk 0:00:07]} 40... Qe6
{[%clk 0:00:04.4]} 41. Qg3 {[%clk 0:00:04.6]} 41... Qe7 {[%clk 0:00:03.6]} 42.
Qc3 {[%clk 0:00:04.7]} 42... Qf7 {[%clk 0:00:03.2]} 43. Qxc6 {[%clk 0:00:04.3]}
43... Qxb3 {[%clk 0:00:02.6]} 44. Qa8+ {[%clk 0:00:04.8]} 44... Kg7 {[%clk
0:00:02.4]} 45. Qxa7+ {[%clk 0:00:05.7]} 45... Kh6 {[%clk 0:00:02.5]} 46. Qxb6
{[%clk 0:00:06.6]} 46... Qb2 {[%clk 0:00:02.1]} 47. Qc5 {[%clk 0:00:06.9]} 47...
Qe2 {[%clk 0:00:02.1]} 48. b5 {[%clk 0:00:06.8]} 48... g5 {[%clk 0:00:02.5]} 49.
b6 {[%clk 0:00:06.5]} 49... Qe8 {[%clk 0:00:01.6]} 50. Qd6+ {[%clk 0:00:04.8]}
50... Kh5 {[%clk 0:00:01.4]} 51. b7 {[%clk 0:00:04.9]} 51... Qf7 {[%clk
0:00:01]} 52. g4+ {[%clk 0:00:04.6]} 52... Kh4 {[%clk 0:00:01.2]} 53. Qh6+
{[%clk 0:00:05.2]} 1-0

[Event "*** Titled Tuesday Blitz"]
[Site "Chess.com"]
[Date "2020.05.05"]
[Round "2"]
[White "Wolverine_master"]
[Black "zubridis"]
[Result "0-1"]
[WhiteElo "2211"]
[BlackElo "2451"]
[TimeControl "180+1"]
[EndTime "10:19:33 PDT"]
[Termination "zubridis won by resignation"]

1. e4 {[%clk 0:03:00.9]} 1... c5 {[%clk 0:02:58.7]} 2. Nf3 {[%clk 0:02:59.2]}
2... d6 {[%clk 0:02:58.1]} 3. d4 {[%clk 0:02:58.6]} 3... cxd4 {[%clk 0:02:59]}
4. Nxd4 {[%clk 0:02:58.9]} 4... Nf6 {[%clk 0:02:59.4]} 5. Nc3 {[%clk 0:02:59]}
5... a6 {[%clk 0:02:59.8]} 6. Be2 {[%clk 0:02:59]} 6... g6 {[%clk 0:02:59.4]} 7.
O-O {[%clk 0:02:49.7]} 7... Bg7 {[%clk 0:02:59.8]} 8. Be3 {[%clk 0:02:48.8]}
8... O-O {[%clk 0:02:59]} 9. a4 {[%clk 0:02:48.7]} 9... Nc6 {[%clk 0:02:58.7]}
10. Kh1 {[%clk 0:02:43.6]} 10... Bd7 {[%clk 0:02:52.9]} 11. f3 {[%clk
0:02:41.6]} 11... Rc8 {[%clk 0:02:49.2]} 12. Nb3 {[%clk 0:02:39.4]} 12... Be6
{[%clk 0:02:29]} 13. Qd2 {[%clk 0:02:34.5]} 13... d5 {[%clk 0:02:11.4]} 14. exd5
{[%clk 0:02:14.6]} 14... Nxd5 {[%clk 0:02:10.3]} 15. Nxd5 {[%clk 0:02:11]} 15...
Qxd5 {[%clk 0:02:07.6]} 16. Rab1 {[%clk 0:01:47.2]} 16... Qxd2 {[%clk
0:01:58.9]} 17. Nxd2 {[%clk 0:01:26.5]} 17... Nd4 {[%clk 0:01:39.3]} 18. Bxd4
{[%clk 0:01:21.5]} 18... Bxd4 {[%clk 0:01:40.2]} 19. c3 {[%clk 0:01:21.5]} 19...
Bg7 {[%clk 0:01:38.5]} 20. Ne4 {[%clk 0:01:14.7]} 20... Rfd8 {[%clk 0:01:36.3]}
21. Rfd1 {[%clk 0:01:13.1]} 21... Bd5 {[%clk 0:01:23.2]} 22. Ng5 {[%clk
0:00:59.7]} 22... h6 {[%clk 0:01:12.1]} 23. Nh3 {[%clk 0:00:57.8]} 23... Bb3
{[%clk 0:00:57.6]} 24. Rxd8+ {[%clk 0:00:24]} 24... Rxd8 {[%clk 0:00:58.5]} 25.
a5 {[%clk 0:00:24.3]} 25... Rd2 {[%clk 0:00:56.7]} 26. Bf1 {[%clk 0:00:20]}
26... Ba2 {[%clk 0:00:52.5]} 27. Re1 {[%clk 0:00:16.6]} 27... e6 {[%clk
0:00:47.7]} 28. b4 {[%clk 0:00:13.9]} 28... Bxc3 {[%clk 0:00:46.3]} 29. b5
{[%clk 0:00:14.4]} 29... Bxa5 {[%clk 0:00:41.8]} 30. bxa6 {[%clk 0:00:13.7]}
30... bxa6 {[%clk 0:00:42.7]} 31. Bxa6 {[%clk 0:00:13.4]} 31... g5 {[%clk
0:00:33.7]} 32. Bf1 {[%clk 0:00:12.2]} 32... Rxg2 {[%clk 0:00:30.5]} 33. Rxe6
{[%clk 0:00:07.8]} 33... Rxh2+ {[%clk 0:00:28.3]} 34. Kxh2 {[%clk 0:00:08.7]}
34... Bxe6 {[%clk 0:00:28]} 35. Bd3 {[%clk 0:00:08.2]} 35... Bc7+ {[%clk
0:00:26.6]} 36. Kg2 {[%clk 0:00:08.2]} 36... f5 {[%clk 0:00:26.3]} 37. Nf2
{[%clk 0:00:08.3]} 37... Kg7 {[%clk 0:00:26.9]} 38. Nd1 {[%clk 0:00:08.2]} 38...
Kf6 {[%clk 0:00:27.6]} 39. Nc3 {[%clk 0:00:07.3]} 39... Ke5 {[%clk 0:00:27.8]}
40. Ne2 {[%clk 0:00:07.6]} 40... Bd5 {[%clk 0:00:24.2]} 41. Kf2 {[%clk
0:00:04.8]} 41... f4 {[%clk 0:00:22.9]} 42. Nc3 {[%clk 0:00:04.3]} 42... Bb6+
{[%clk 0:00:23.1]} 43. Ke2 {[%clk 0:00:04.7]} 43... Be6 {[%clk 0:00:22.1]} 44.
Bg6 {[%clk 0:00:04.5]} 44... Bd4 {[%clk 0:00:20.6]} 45. Ne4 {[%clk 0:00:04.4]}
45... Bc4+ {[%clk 0:00:17.3]} 46. Kd2 {[%clk 0:00:04.1]} 46... Be3+ {[%clk
0:00:16.1]} 47. Ke1 {[%clk 0:00:03.8]} 47... Bd3 {[%clk 0:00:14.9]} 48. Bh7
{[%clk 0:00:02.9]} 48... Bc4 {[%clk 0:00:13.3]} 49. Bg6 {[%clk 0:00:02.4]} 49...
Be6 {[%clk 0:00:13.6]} 50. Bh7 {[%clk 0:00:02.6]} 50... Bb6 {[%clk 0:00:10.4]}
51. Bg6 {[%clk 0:00:02.4]} 51... Bd8 {[%clk 0:00:10.5]} 52. Bh7 {[%clk
0:00:02.4]} 52... Bf7 {[%clk 0:00:10.3]} 53. Nd2 {[%clk 0:00:03.3]} 53... h5
{[%clk 0:00:10.1]} 54. Nb3 {[%clk 0:00:03.5]} 54... Bb6 {[%clk 0:00:08.6]} 55.
Be4 {[%clk 0:00:04.4]} 55... Bxb3 {[%clk 0:00:07.7]} 56. Kf1 {[%clk 0:00:04.3]}
56... Bc4+ {[%clk 0:00:07.5]} 57. Kg2 {[%clk 0:00:05.2]} 57... g4 {[%clk
0:00:07.7]} 58. Kh1 {[%clk 0:00:04.9]} 58... g3 {[%clk 0:00:08.2]} 59. Kg2
{[%clk 0:00:05.1]} 59... h4 {[%clk 0:00:09.1]} 60. Bg6 {[%clk 0:00:05.2]} 60...
Be6 {[%clk 0:00:08.1]} 61. Bh5 {[%clk 0:00:06.1]} 61... h3+ {[%clk 0:00:08.3]}
62. Kh1 {[%clk 0:00:05.7]} 62... g2+ {[%clk 0:00:06.6]} 0-1

[Event "*** Titled Tuesday Blitz"]
[Site "Chess.com"]
[Date "2020.05.05"]
[Round "2"]
[White "Agnes66678"]
[Black "Larina_Marija"]
[Result "1-0"]
[WhiteElo "2402"]
[BlackElo "2146"]
[TimeControl "180+1"]
[EndTime "10:19:33 PDT"]
[Termination "Agnes66678 won on time"]

1. Nf3 {[%clk 0:03:00.9]} 1... f5 {[%clk 0:02:59.7]} 2. d4 {[%clk 0:02:58.8]}
2... Nf6 {[%clk 0:02:59.5]} 3. g3 {[%clk 0:02:59.4]} 3... g6 {[%clk 0:02:59.3]}
4. Bg2 {[%clk 0:02:59.9]} 4... Bg7 {[%clk 0:02:59.8]} 5. b3 {[%clk 0:02:59.8]}
5... O-O {[%clk 0:02:56.4]} 6. O-O {[%clk 0:03:00.2]} 6... d6 {[%clk 0:02:55.1]}
7. Bb2 {[%clk 0:03:00.1]} 7... c6 {[%clk 0:02:44]} 8. Nbd2 {[%clk 0:02:59.3]}
8... Nbd7 {[%clk 0:02:32.3]} 9. c4 {[%clk 0:02:56.6]} 9... Re8 {[%clk
0:02:28.8]} 10. Qc2 {[%clk 0:02:54.3]} 10... e5 {[%clk 0:02:23.6]} 11. dxe5
{[%clk 0:02:53.5]} 11... dxe5 {[%clk 0:02:23.1]} 12. e4 {[%clk 0:02:53.8]} 12...
fxe4 {[%clk 0:02:09.4]} 13. Nxe4 {[%clk 0:02:52.6]} 13... Nxe4 {[%clk
0:02:09.9]} 14. Qxe4 {[%clk 0:02:52]} 14... Nf6 {[%clk 0:02:09.6]} 15. Qe2
{[%clk 0:02:49.1]} 15... Bg4 {[%clk 0:02:08.3]} 16. h3 {[%clk 0:02:45.2]} 16...
Bxf3 {[%clk 0:01:56.3]} 17. Bxf3 {[%clk 0:02:43.7]} 17... Qa5 {[%clk 0:01:37.1]}
18. Rfd1 {[%clk 0:02:34.1]} 18... Re7 {[%clk 0:01:30.3]} 19. a3 {[%clk
0:02:30.4]} 19... Rf8 {[%clk 0:01:27.9]} 20. b4 {[%clk 0:02:29.5]} 20... Qc7
{[%clk 0:01:27.4]} 21. Bg2 {[%clk 0:02:27.2]} 21... e4 {[%clk 0:01:16.2]} 22.
Bd4 {[%clk 0:02:23]} 22... b6 {[%clk 0:01:12.4]} 23. Be3 {[%clk 0:02:20.8]}
23... Nh5 {[%clk 0:00:59.6]} 24. Rac1 {[%clk 0:02:16.2]} 24... Qe5 {[%clk
0:00:52.8]} 25. Bd4 {[%clk 0:02:00.1]} 25... Qf5 {[%clk 0:00:51.8]} 26. Bxg7
{[%clk 0:01:59.4]} 26... Nxg7 {[%clk 0:00:51.6]} 27. Re1 {[%clk 0:01:57.5]}
27... Rfe8 {[%clk 0:00:40.1]} 28. c5 {[%clk 0:01:52.5]} 28... b5 {[%clk
0:00:38.9]} 29. a4 {[%clk 0:01:52.2]} 29... a6 {[%clk 0:00:38.6]} 30. axb5
{[%clk 0:01:51.5]} 30... axb5 {[%clk 0:00:38.8]} 31. Rcd1 {[%clk 0:01:51.3]}
31... Re6 {[%clk 0:00:31.5]} 32. Qe3 {[%clk 0:01:49.8]} 32... g5 {[%clk
0:00:27]} 33. Rd6 {[%clk 0:01:46.8]} 33... h6 {[%clk 0:00:22.6]} 34. Red1 {[%clk
0:01:45.4]} 34... Rf8 {[%clk 0:00:21.4]} 35. R1d2 {[%clk 0:01:32.6]} 35... Qe5
{[%clk 0:00:19]} 36. Rxe6 {[%clk 0:01:29.5]} 36... Nxe6 {[%clk 0:00:17.3]} 37.
Qxe4 {[%clk 0:01:27.6]} 37... Qa1+ {[%clk 0:00:15.7]} 38. Kh2 {[%clk 0:01:27]}
38... Ng7 {[%clk 0:00:15.6]} 39. Rd7 {[%clk 0:01:24.5]} 39... Qc3 {[%clk
0:00:14.9]} 40. Qd4 {[%clk 0:01:15.4]} 40... Qxd4 {[%clk 0:00:14.3]} 41. Rxd4
{[%clk 0:01:15.1]} 41... Rxf2 {[%clk 0:00:15.2]} 42. Kg1 {[%clk 0:01:15.1]}
42... Rb2 {[%clk 0:00:14.7]} 43. Bxc6 {[%clk 0:01:14.7]} 43... Nf5 {[%clk
0:00:14.3]} 44. Rd8+ {[%clk 0:01:13.4]} 44... Kg7 {[%clk 0:00:14.1]} 45. Bxb5
{[%clk 0:01:09]} 45... Rxb4 {[%clk 0:00:13.6]} 46. c6 {[%clk 0:01:07]} 46...
Rxb5 {[%clk 0:00:07.7]} 47. c7 {[%clk 0:01:06.9]} 47... Ne7 {[%clk 0:00:05.4]}
48. Rd7 {[%clk 0:01:05.2]} 48... Rc5 {[%clk 0:00:05.6]} 49. Rxe7+ {[%clk
0:01:05]} 49... Kg6 {[%clk 0:00:04.9]} 50. Kg2 {[%clk 0:01:04.5]} 50... Rc3
{[%clk 0:00:03.9]} 51. Kf2 {[%clk 0:01:03.5]} 51... h5 {[%clk 0:00:03.9]} 52.
Ke2 {[%clk 0:01:01.8]} 52... h4 {[%clk 0:00:03.9]} 53. g4 {[%clk 0:01:01.6]}
53... Kh6 {[%clk 0:00:03.6]} 54. Kd2 {[%clk 0:01:01.2]} 54... Rc4 {[%clk
0:00:01.4]} 55. Kd3 {[%clk 0:01:00.8]} 55... Rc1 {[%clk 0:00:01.5]} 56. Kd4
{[%clk 0:01:00.1]} 56... Rc2 {[%clk 0:00:01.4]} 57. Kd5 {[%clk 0:00:59.3]} 57...
Kg6 {[%clk 0:00:01.6]} 58. Kd6 {[%clk 0:00:58.7]} 58... Kf6 {[%clk 0:00:02.1]}
59. Re3 {[%clk 0:00:55.4]} 59... Rd2+ {[%clk 0:00:02]} 60. Kc6 {[%clk
0:00:55.2]} 60... Rc2+ {[%clk 0:00:02.2]} 61. Kd7 {[%clk 0:00:55.2]} 61... Rd2+
{[%clk 0:00:02.4]} 62. Kc8 {[%clk 0:00:55.5]} 62... Rc2 {[%clk 0:00:02.7]} 63.
Rd3 {[%clk 0:00:53.7]} 63... Rc6 {[%clk 0:00:02.3]} 64. Kd7 {[%clk 0:00:53.1]}
64... Rc3 {[%clk 0:00:01.8]} 65. Rxc3 {[%clk 0:00:52]} 65... Ke5 {[%clk
0:00:01.7]} 66. c8=Q {[%clk 0:00:51.1]} 1-0